fUSD/lending_fUSD_20251130
["ID","MTS","AMOUNT","RATE_DAILY","PERIOD"]
[395142374,1764474644814,-1000.745763,0.00016521,2]
[395142375,1764474644824,-495.14510969,0.00016521,2]
[395142376,1764474644833,-1001.35128612,0.00016521,2]
[395142377,1764474644843,-500.92969355,0.00016521,2]
[395142378,1764474644853,-1018.43163791,0.00016521,2]
[395142379,1764474644863,-1000.0,0.00016521,2]
[395142380,1764474644874,-1000.0,0.00016521,2]
[395142381,1764474644883,-1000.0,0.00016521,2]
[395142382,1764474644893,-1001.18740995,0.00016521,2]
[395142383,1764474644904,-1000.0,0.00016521,2]
[395142384,1764474644914,-2155.0,0.00016521,2]
[395142385,1764474644923,-150.0,0.00016523,2]
[395142386,1764474644933,-150.0,0.00016523,2]
[395142387,1764474644942,-150.0,0.00016533,2]
[395142388,1764474644951,-1062.0,0.00016549,2]
[395142389,1764474644960,-150.0,0.00016562,2]
[395142390,1764474644969,-833.0,0.00016575,2]
[395142391,1764474644979,-150.0,0.00016575,2]
[395142392,1764474644989,-500.0,0.00016575,2]
[395142393,1764474644998,-985.43015278,0.00016606,2]
[395142394,1764474645008,-150.0,0.00016609,2]
[395142395,1764474645017,-151.8981321,0.00016613,2]
[395142396,1764474645026,-574.12855637,0.00016613,2]
[395142397,1764474645036,-1000.0,0.00016613,2]
[395142398,1764474645045,-666.72878,0.00016613,2]
[395142399,1764474645057,-150.0,0.00016647,2]
[395142400,1764474645066,-150.0,0.00016647,2]
[395142401,1764474645077,-150.0,0.00016677,2]
[395142402,1764474645087,-150.0,0.00016677,2]
[395142405,1764474645373,-150.0,0.00016703,2]
[395142406,1764474645383,-833.0,0.00016712,2]
[395142407,1764474645392,-179.75220737,0.00016712,2]
[395142408,1764474645401,-500.0,0.00016712,2]
[395142409,1764474645411,-237.3246584,0.00016713,2]
[395142410,1764474645421,-2155.0,0.00016714,2]
[395142411,1764474645431,-217.15941515,0.00016716,2]
[395142412,1764474645442,-1520.19807694,0.00016726,2]
[395142413,1764474645452,-150.0,0.00016744,2]
[395142414,1764474645463,-150.0,0.0001676,2]
[395142415,1764474645473,-150.0,0.00016774,2]
[395142416,1764474645483,-150.0,0.00016798,2]
[395142417,1764474645492,-1784.0,0.000168,2]
[395142418,1764474645503,-250.0,0.000168,2]
[395142419,1764474645512,-150.0,0.00016816,2]
[395142420,1764474645522,-1538.73486,0.0001683,2]
[395142421,1764474645532,-150.0,0.00016832,2]
[395142422,1764474645542,-150.0,0.00016832,2]
[395142423,1764474645551,-2155.0,0.00016836,2]
[395142424,1764474645561,-841.22692758,0.00016849,2]
[395142425,1764474645570,-500.0,0.00016849,2]
[395142426,1764474645579,-200.0,0.00016863,2]
[395142427,1764474645588,-200.0,0.00016864,2]
[395142428,1764474645598,-200.0,0.00016864,2]
[395142429,1764474645607,-200.0,0.00016864,2]
[395142430,1764474645619,-200.0,0.00016864,2]
[395142431,1764474645629,-150.0,0.00016873,2]
[395142432,1764474645638,-334.5472959,0.00016886,2]
[395142433,1764474645648,-267.46074303,0.00016886,2]
[395142434,1764474645657,-311.1,0.00016886,2]
[395142435,1764474645667,-163.27944846,0.00016886,2]
[395142436,1764474645677,-151.0,0.00016886,2]
[395142437,1764474645687,-150.0,0.00016892,2]
[395142438,1764474645696,-10564.12898969,0.000169,2]
[395142439,1764474645705,-201.41866534,0.000169,2]
[395142440,1764474645714,-242.42422664,0.000169,2]
[395142441,1764474645723,-585.71066631,0.000169,2]
[395142442,1764474645732,-1323.05333443,0.000169,2]
[395142443,1764474645741,-183.66617545,0.000169,2]
[395142444,1764474645752,-500.0,0.000169,2]
[395142445,1764474645761,-500.0,0.000169,2]
[395142446,1764474645770,-500.0,0.000169,2]
[395142447,1764474645779,-500.0,0.000169,2]
[395142448,1764474645790,-500.0,0.000169,2]
[395142449,1764474645799,-500.0,0.000169,2]
[395142450,1764474645809,-500.0,0.000169,2]
[395142451,1764474645819,-500.0,0.000169,2]
[395142452,1764474645828,-500.0,0.000169,2]
[395142453,1764474645838,-500.0,0.000169,2]
[395142454,1764474645847,-500.0,0.000169,2]
[395142455,1764474645857,-500.0,0.000169,2]
[395142456,1764474645866,-500.0,0.000169,2]
[395142457,1764474645875,-500.0,0.000169,2]
[395142458,1764474645884,-500.0,0.000169,2]
[395142459,1764474645894,-500.0,0.000169,2]
[395142461,1764474645904,-197.92719606,0.000169,2]
[395142462,1764474645913,-9179.0,0.000169,2]
[395142464,1764474645922,-2155.0,0.00016916,2]
[395142466,1764474645933,-1538.73487,0.0001695,2]
[395142468,1764474645943,-1347.0,0.00016959,2]
[395142469,1764474645952,-500.0,0.00016973,2]
[395142470,1764474645961,-500.0,0.00016973,2]
[395142471,1764474645970,-500.38978168,0.00016973,2]
[395142472,1764474645980,-176.66973248,0.00016973,2]
[395142473,1764474645989,-162.090508,0.00016973,2]
[395142474,1764474645998,-366.95471126,0.00016973,2]
[395142475,1764474646008,-502.42313954,0.00016973,2]
[395142476,1764474646018,-500.0,0.00016973,2]
[395142477,1764474646027,-500.0,0.00016973,2]
[395142478,1764474646036,-500.0,0.00016973,2]
[395142479,1764474646045,-500.838144,0.00016973,2]
[395142480,1764474646055,-500.0,0.00016973,2]
[395142481,1764474646064,-500.0,0.00016973,2]
[395142482,1764474646074,-500.49965341,0.00016973,2]
[395142483,1764474646083,-500.0,0.00016973,2]
[395142484,1764474646093,-187.03419553,0.00016973,2]
[395142485,1764474646102,-500.0,0.00016973,2]
[395142486,1764474646111,-415.54250471,0.00016973,2]
[395142487,1764474646120,-500.0,0.00016973,2]
[395142488,1764474646129,-500.0,0.00016973,2]
[395142489,1764474646138,-507.2295556,0.00016973,2]
[395142490,1764474646148,-500.0,0.00016973,2]
[395142491,1764474646157,-500.0,0.00016973,2]
[395142492,1764474646166,-500.0,0.00016973,2]
[395142493,1764474646176,-500.0,0.00016973,2]
[395142494,1764474646186,-500.0,0.00016973,2]
[395142495,1764474646196,-172.99922432,0.00016973,2]
[395142496,1764474646206,-500.0,0.00016973,2]
[395142497,1764474646216,-215.92719524,0.00016973,2]
[395142498,1764474646225,-500.0,0.00016973,2]
[395142499,1764474646234,-500.0,0.00016973,2]
[395142500,1764474646243,-500.0,0.00016973,2]
[395142501,1764474646252,-500.0,0.00016973,2]
[395142502,1764474646261,-500.0,0.00016973,2]
[395142503,1764474646271,-281.71884417,0.00016973,2]
[395142504,1764474646280,-500.0,0.00016973,2]
[395142505,1764474646289,-500.0,0.00016973,2]
[395142506,1764474646299,-500.0,0.00016973,2]
[395142507,1764474646308,-500.0,0.00016983,2]
[395142508,1764474646317,-25578.2560018,0.00016985,2]
[395142509,1764474646326,-500.0,0.00016986,2]
[395142510,1764474646336,-150.10346577,0.00016986,2]
[395142511,1764474646345,-165.6418434,0.00016986,2]
[395142512,1764474646355,-204.30018079,0.00016986,2]
[395142513,1764474646364,-168.80232589,0.00016986,2]
[395142514,1764474646373,-151.57196874,0.00016986,2]
[395142515,1764474646382,-155.69497856,0.00016986,2]
[395142516,1764474646391,-239.89101121,0.00016986,2]
[395142517,1764474646401,-152.10525801,0.00016986,2]
[395142518,1764474646410,-152.51466941,0.00016986,2]
[395142519,1764474646419,-244.26630786,0.00016986,2]
[395142520,1764474646428,-222.23133542,0.0001699,2]
[395142521,1764474646437,-151.0,0.00016997,2]
[395142522,1764474646447,-151.0,0.00016997,2]
[395142523,1764474646456,-500.0,0.00016998,2]
[395142524,1764474646466,-522.79968162,0.00016998,2]
[395142525,1764474646477,-500.0,0.00016998,2]
[395142526,1764474646486,-300.0,0.00016999,2]
[395142527,1764474646496,-300.0,0.00016999,2]
[395142528,1764474646506,-300.0,0.00016999,2]
[395142529,1764474646515,-500.0,0.00016999,2]
[395142530,1764474646524,-500.0,0.00016999,2]
[395142531,1764474646534,-500.0,0.00016999,2]
[395142532,1764474646544,-500.0,0.00016999,2]
[395142533,1764474646553,-500.0,0.00016999,2]
[395142534,1764474646562,-500.0,0.00016999,2]
[395142535,1764474646571,-500.0,0.00016999,2]
[395142536,1764474646581,-500.0,0.00016999,2]
[395142537,1764474646590,-500.0,0.00016999,2]
[395142538,1764474646599,-500.0,0.00016999,2]
[395142539,1764474646610,-500.0,0.00016999,2]
[395142540,1764474646620,-500.0,0.00016999,2]
[395142541,1764474646634,-498.79922411,0.00016999,2]
[395142542,1764474646643,-300.0,0.00016999,2]
[395142543,1764474646653,-3231171.33395652,0.00017,2]
[395142544,1764474646662,-3611959.5452994,0.00017,2]
[395142545,1764474646717,-1188.74622491,0.00017,2]
[395142546,1764474646741,-51820.62851984,0.00017,2]
[395142547,1764474646965,-10731.01912973,0.00014156,2]
[395142548,1764474646975,-2316381.67366745,0.00017,2]
[395142549,1764474647047,-500.0,0.00016973,2]
[395142550,1764474647056,-615.90003394,0.00017,2]
[395142552,1764474647866,-1.7e-07,0.00017,2]
[395142553,1764474648738,-1825.86696782,0.00017,2]
[395142555,1764474649303,-10731.01912973,0.00014548,2]
[395142556,1764474649314,-462535.84310604,0.00017,2]
[395142557,1764474649687,-86410.39794107,0.00017,2]
[395142558,1764474650393,1000.0,0.00013372,2]
[395142571,1764474680004,1106.3053,0.00013372,2]
[395142573,1764474749208,6456.1325,0.00013372,2]
[395142577,1764474766559,1000.0,0.00013372,2]
[395142578,1764474776448,437.5722,0.00013372,2]
[395142579,1764474776472,10000.01,0.00013372,2]
[395142580,1764474776495,10000.01,0.00013372,2]
[395142581,1764474776518,10000.01,0.00013372,2]
[395142582,1764474776540,10000.01,0.00013372,2]
[395142583,1764474776563,10000.01,0.00013372,2]
[395142584,1764474776585,10000.01,0.00013372,2]
[395142585,1764474776608,10000.01,0.00013372,2]
[395142586,1764474776630,10000.01,0.00013372,2]
[395142587,1764474776652,10000.01,0.00013372,2]
[395142592,1764474841791,150.0,0.00013371,2]
[395142593,1764474843846,160.74991671,0.00013272,2]
[395142595,1764474860287,-1173.10572599,0.00013372,2]
[395142596,1764474861750,-415.26373283,0.00013372,2]
[395142597,1764474863728,-268.27429584,0.00013372,2]
[395142599,1764474865730,-184.82968071,0.00013372,2]
[395142601,1764474869553,-500.0,0.00013372,2]
[395142602,1764474871151,-324.43492454,0.00013372,2]
[395142603,1764474871688,201.24797552,0.00013371,2]
[395142604,1764474871739,500.0,0.00013371,2]
[395142605,1764474871861,367.61827092,0.00013371,2]
[395142606,1764474872755,-394.41304336,0.00013372,2]
[395142607,1764474875162,500.0,0.00013371,2]
[395142608,1764474875237,478.49237326,0.00013371,2]
[395142609,1764474875582,-200.63795196,0.00013372,2]
[395142611,1764474895098,500.0,0.00013371,2]
[395142612,1764474895160,500.0,0.00013371,2]
[395142613,1764474895207,500.0,0.00013371,2]
[395142614,1764474895267,300.0,0.00013371,2]
[395142615,1764474901457,300.0,0.00013371,2]
[395142616,1764474901492,1200.0,0.00013371,2]
[395142617,1764474901527,300.0,0.00013371,2]
[395142621,1764474913472,500.0,0.00013371,2]
[395142622,1764474913536,500.0,0.00013371,2]
[395142623,1764474913593,453.30313915,0.00013371,2]
[395142625,1764474926181,500.0,0.00013371,2]
[395142626,1764474926235,500.0,0.00013371,2]
[395142627,1764474926299,500.0,0.00013371,2]
[395142628,1764474926727,500.0,0.00013371,2]
[395142629,1764474926777,250.0,0.00013371,2]
[395142639,1764474944751,338.59832444,0.00013371,2]
[395142640,1764474944780,161.40167556,0.00013371,2]
[395142641,1764474944820,500.0,0.00013371,2]
[395142642,1764474944858,500.0,0.00013371,2]
[395142643,1764474944914,479.42304129,0.00013371,2]
[395142648,1764474961353,300.0,0.00013371,2]
[395142649,1764474964166,500.0,0.00013371,2]
[395142650,1764474964209,500.0,0.00013371,2]
[395142651,1764474964250,500.0,0.00013371,2]
[395142652,1764474964292,300.0,0.00013371,2]
[395142653,1764474965169,-299.36204804,0.00013372,2]
[395142654,1764474981660,500.0,0.00013371,2]
[395142655,1764474981715,500.0,0.00013371,2]
[395142656,1764474981770,500.0,0.00013371,2]
[395142657,1764474981823,300.0,0.00013371,2]
[395142658,1764474999444,320.33543179,0.00013371,2]
[395142659,1764474999502,500.0,0.00013371,2]
[395142660,1764475021674,300.0,0.00013371,2]
[395142661,1764475021917,150.0,0.00013371,2]
[395142663,1764475033545,3188.84985136,0.00013272,2]
[395142664,1764475033570,6848.78385909,0.00013272,2]
[395142668,1764475063132,235.2993,0.00013272,2]
[395142670,1764475088904,2915.92684091,0.00013272,2]
[395142671,1764475088927,8407.87198235,0.00013272,2]
[395142672,1764475091053,307.93848892,0.00013272,2]
[395142674,1764475099982,205.94,0.00013272,2]
[395142677,1764475141329,300.0,0.00013371,2]
[395142680,1764475186808,524.3,0.00022,30]
[395142681,1764475201348,778.25952873,0.00013371,2]
[395142682,1764475201370,421.74047127,0.00013371,2]
[395142683,1764475201474,300.0,0.00013371,2]
[395142684,1764475201781,150.0,0.00013371,2]
[395142688,1764475257069,156.62,0.00019178,30]
[395142689,1764475257889,352.77737544,0.00013272,2]
[395142690,1764475261398,300.0,0.00013371,2]
[395142692,1764475274850,1000.0,0.00013272,2]
[395142693,1764475278558,5055.86563496,0.00025,120]
[395142694,1764475292727,172.977,0.00013104,2]
[395142695,1764475292765,2833.149,0.00013104,2]
[395142698,1764475321519,300.0,0.00013371,2]
[395142699,1764475324268,2500.0,0.00013272,2]
[395142701,1764475342867,194.25158579,0.00013372,2]
[395142702,1764475345965,151.0,0.00013372,2]
[395142703,1764475346586,151.0,0.00013372,2]
[395142704,1764475347186,151.0,0.00013372,2]
[395142705,1764475347778,151.0,0.00013372,2]
[395142706,1764475348394,151.0,0.00013372,2]
[395142707,1764475348988,151.0,0.00013372,2]
[395142708,1764475349648,151.0,0.00013372,2]
[395142709,1764475350274,151.0,0.00013372,2]
[395142710,1764475351994,151.0,0.00013372,2]
[395142711,1764475352215,116.1145675,0.00013372,2]
[395142712,1764475352247,74.6421607,0.00013372,2]
[395142714,1764475366020,-3816.82587621,0.00013372,2]
[395142715,1764475366126,-10000.01,0.00013372,2]
[395142716,1764475366311,-10000.01,0.00013372,2]
[395142717,1764475366402,-10000.01,0.00013372,2]
[395142718,1764475366520,-10000.01,0.00013372,2]
[395142719,1764475369099,-10000.01,0.00013372,2]
[395142720,1764475369190,-10000.01,0.00013372,2]
[395142726,1764475448009,6648.742145,7.945e-05,2]
[395142744,1764475558468,-725.932856,0.00013205,2]
[395142745,1764475558496,-300.0,0.00013271,2]
[395142746,1764475558523,-300.0,0.00013271,2]
[395142747,1764475558551,-1200.0,0.00013271,2]
[395142748,1764475558580,-500.0,0.00013272,2]
[395142749,1764475558607,-1000.0,0.00013272,2]
[395142750,1764475560033,-3017.8305,0.00013272,2]
[395142751,1764475560066,-1464.349,0.00013272,2]
[395142752,1764475560255,-1035.651,0.00013272,2]
[395142753,1764475560315,-4263.761143,0.00013272,2]
[395142754,1764475567225,-300.0,0.00013271,2]
[395142755,1764475567255,-2170.89869238,0.00013272,2]
[395142756,1764475567292,-5058.21261524,0.00013272,2]
[395142757,1764475567329,-10000.01,0.00013272,2]
[395142784,1764475677808,558.0,0.00025,120]
[395142785,1764475699299,151.00765985,0.00025,120]
[395142787,1764475748158,1102.292573,0.00013105,2]
[395142794,1764475784189,161.55,0.00010766,2]
[395142795,1764475785962,161.55,0.0001256,2]
[395142796,1764475800063,-250.0,0.00013238,2]
[395142797,1764475800092,-300.0,0.00013271,2]
[395142798,1764475801205,300.0,0.00013271,2]
[395142799,1764475801241,300.0,0.00013271,2]
[395142800,1764475801285,1200.0,0.00013271,2]
[395142801,1764475801560,-424.29874086,0.00013272,2]
[395142802,1764475803324,-262.36925914,0.00013272,2]
[395142803,1764475803347,-16.55799238,0.00013272,2]
[395142804,1764475805316,-255.92714014,0.00013272,2]
[395142805,1764475808588,-250.0,0.00013272,2]
[395142806,1764475811108,-250.0,0.00013272,2]
[395142811,1764475831547,-1727.51486748,0.00013272,2]
[395142812,1764475831556,-3060.57342282,0.00013272,2]
[395142813,1764475831570,-324.27327818,0.00013272,2]
[395142814,1764475831581,-253.75974854,0.00013272,2]
[395142815,1764475831615,-72845.64925805,0.00013272,2]
[395142818,1764475835644,200.79568794,0.00013271,2]
[395142819,1764475835688,184.73701271,0.00013271,2]
[395142821,1764475836844,687.87290024,0.00013269,2]
[395142823,1764475837813,628.80011146,0.00013271,2]
[395142824,1764475837859,535.49805474,0.00013271,2]
[395142825,1764475837928,535.49805474,0.00013271,2]
[395142826,1764475837992,-1158.25,0.00013272,2]
[395142827,1764475838038,535.49805474,0.00013271,2]
[395142828,1764475838116,535.49805474,0.00013271,2]
[395142830,1764475838175,535.49805474,0.00013271,2]
[395142831,1764475838246,535.49805474,0.00013271,2]
[395142832,1764475838312,535.49805474,0.00013271,2]
[395142833,1764475838325,-349.056,0.00013272,2]
[395142834,1764475838337,-682008.43829241,0.00013272,2]
[395142835,1764475838346,-152.1713653,0.00013272,2]
[395142836,1764475838356,-1659.2806237,0.00013272,2]
[395142837,1764475838365,-277.72917998,0.00013298,2]
[395142838,1764475838375,-150.0,0.00013368,2]
[395142839,1764475838385,-1000.0,0.00013372,2]
[395142840,1764475838395,-2816.2066,0.00013372,2]
[395142841,1764475838410,-191.04412744,0.00013372,2]
[395142842,1764475838420,-151.0,0.00013372,2]
[395142843,1764475838430,-549.99,0.00013372,2]
[395142844,1764475838440,-150.99,0.00013372,2]
[395142845,1764475838449,-299.99,0.00013372,2]
[395142846,1764475838463,-9999.99,0.00013372,2]
[395142847,1764475838473,-9999.99,0.00013412,2]
[395142848,1764475838482,-3511.55,0.00013412,2]
[395142849,1764475838492,-1428.12,0.00013412,2]
[395142850,1764475838501,-1600.0,0.00013441,2]
[395142851,1764475838511,-2751.0,0.00013456,2]
[395142852,1764475838521,-181.49,0.00013471,2]
[395142853,1764475838533,-1072.21727013,0.0001357,2]
[395142854,1764475838543,-500.0,0.00013698,2]
[395142855,1764475838553,-500.0,0.00013698,2]
[395142856,1764475838563,-500.0,0.00013698,2]
[395142857,1764475838573,-500.0,0.00013698,2]
[395142858,1764475838583,-500.0,0.00013698,2]
[395142859,1764475838593,-500.0,0.00013698,2]
[395142860,1764475838602,-312.82118125,0.00013698,2]
[395142861,1764475838612,-545.90394043,0.00013698,2]
[395142862,1764475838622,-500.0,0.00013698,2]
[395142863,1764475838632,-500.0,0.00013698,2]
[395142864,1764475838642,-500.0,0.00013698,2]
[395142865,1764475838652,-514.41914055,0.00013698,2]
[395142866,1764475838663,-500.0,0.00013698,2]
[395142867,1764475838674,-614.92249161,0.00013698,2]
[395142868,1764475838684,-500.0,0.00013698,2]
[395142869,1764475838694,-500.0,0.00013698,2]
[395142870,1764475838704,-508.7696699,0.00013698,2]
[395142871,1764475838714,-500.0,0.00013698,2]
[395142872,1764475838724,-500.0,0.00013698,2]
[395142873,1764475838733,-500.0,0.00013698,2]
[395142874,1764475838743,-500.0,0.00013698,2]
[395142875,1764475838754,-515.50675276,0.00013698,2]
[395142876,1764475838763,-500.0,0.00013698,2]
[395142877,1764475838773,-500.0,0.00013698,2]
[395142878,1764475838783,-500.0,0.00013698,2]
[395142879,1764475838793,-500.0,0.00013698,2]
[395142880,1764475838802,-500.0,0.00013698,2]
[395142881,1764475838812,-636.56687487,0.00013698,2]
[395142882,1764475838822,-500.0,0.00013698,2]
[395142883,1764475838835,-500.0,0.00013698,2]
[395142884,1764475838845,-394.2,0.00013698,2]
[395142885,1764475838855,-500.0,0.00013698,2]
[395142886,1764475838865,-177.9986514,0.00013698,2]
[395142887,1764475838876,-500.0,0.00013698,2]
[395142888,1764475838885,-500.0,0.00013698,2]
[395142889,1764475838895,-500.0,0.00013698,2]
[395142890,1764475838905,-500.0,0.00013698,2]
[395142891,1764475838915,-500.0,0.00013698,2]
[395142892,1764475838926,-500.0,0.00013698,2]
[395142893,1764475838936,-500.0,0.00013698,2]
[395142894,1764475838946,-500.0,0.00013698,2]
[395142895,1764475838956,-500.0,0.00013698,2]
[395142896,1764475838965,-500.0,0.00013698,2]
[395142897,1764475838975,-500.0,0.00013698,2]
[395142898,1764475838985,-150.0,0.00013698,2]
[395142899,1764475838994,-500.0,0.00013698,2]
[395142900,1764475839003,-461.0,0.00013698,2]
[395142901,1764475839013,-500.0,0.00013698,2]
[395142902,1764475839026,-160.73087474,0.00013698,2]
[395142903,1764475839037,-500.0,0.00013698,2]
[395142904,1764475839047,-500.0,0.00013698,2]
[395142905,1764475839056,-500.0,0.00013698,2]
[395142906,1764475839066,-150.0,0.00013698,2]
[395142907,1764475839076,-158.73149787,0.00013698,2]
[395142908,1764475839086,-500.0,0.00013698,2]
[395142909,1764475839096,-600.0,0.00013699,2]
[395142910,1764475839106,-2954.41,0.00013699,2]
[395142911,1764475839116,-150.99,0.00013699,2]
[395142912,1764475839126,-999.99,0.00013699,2]
[395142913,1764475839138,-255.07516903,0.00013699,2]
[395142914,1764475839148,-500.0,0.00013699,2]
[395142915,1764475839158,-500.0,0.00013699,2]
[395142916,1764475839168,-500.0,0.00013699,2]
[395142917,1764475839178,-500.0,0.00013699,2]
[395142918,1764475839188,-500.0,0.00013699,2]
[395142919,1764475839198,-368.48677015,0.00013699,2]
[395142920,1764475839210,-500.0,0.00013699,2]
[395142921,1764475839224,-360.91784141,0.00013699,2]
[395142922,1764475839234,-500.0,0.00013699,2]
[395142923,1764475839244,-500.0,0.00013699,2]
[395142924,1764475839253,-1517.75,0.000137,2]
[395142925,1764475839263,-1517.75,0.000137,2]
[395142926,1764475839272,-36206.09,0.0001382,2]
[395142927,1764475839282,-500.0,0.00013835,2]
[395142928,1764475839292,-150.0,0.00013835,2]
[395142929,1764475839302,-500.0,0.00013835,2]
[395142930,1764475839311,-461.0,0.00013835,2]
[395142931,1764475839321,-500.0,0.00013835,2]
[395142932,1764475839331,-526.11568986,0.00013835,2]
[395142933,1764475839341,-500.0,0.00013835,2]
[395142934,1764475839351,-366.472595,0.00013835,2]
[395142935,1764475839360,-500.0,0.00013835,2]
[395142936,1764475839369,-500.0,0.00013942,2]
[395142937,1764475839379,-500.0,0.00013942,2]
[395142938,1764475839389,-500.0,0.00013972,2]
[395142939,1764475839398,-150.0,0.00013972,2]
[395142940,1764475839407,-500.0,0.00013972,2]
[395142941,1764475839417,-461.0,0.00013972,2]
[395142942,1764475839426,-500.0,0.00013972,2]
[395142943,1764475839435,-500.0,0.00013972,2]
[395142944,1764475839445,-500.0,0.00013972,2]
[395142945,1764475839455,-394.2,0.00013972,2]
[395142946,1764475839464,-600.0,0.00013973,2]
[395142947,1764475839473,-413.0,0.00014,2]
[395142948,1764475839482,-500.0,0.00014109,2]
[395142949,1764475839491,-201.77643634,0.00014109,2]
[395142950,1764475839501,-500.0,0.00014109,2]
[395142951,1764475839510,-461.0,0.00014109,2]
[395142952,1764475839519,-500.0,0.00014109,2]
[395142953,1764475839529,-275.87741623,0.00014109,2]
[395142954,1764475839538,-500.0,0.00014109,2]
[395142955,1764475839547,-181.49,0.0001422,2]
[395142956,1764475839556,-500.0,0.00014246,2]
[395142957,1764475839566,-500.0,0.00014246,2]
[395142958,1764475839575,-461.0,0.00014246,2]
[395142959,1764475839585,-354.49922038,0.00014246,2]
[395142960,1764475839596,-500.0,0.00014246,2]
[395142961,1764475839606,-394.2,0.00014246,2]
[395142962,1764475839615,-600.0,0.00014247,2]
[395142963,1764475839624,-161.55,0.00014355,2]
[395142964,1764475839634,-500.0,0.00014383,2]
[395142965,1764475839644,-500.0,0.00014383,2]
[395142966,1764475839653,-461.0,0.00014383,2]
[395142967,1764475839662,-500.0,0.00014383,2]
[395142968,1764475839671,-255.0,0.00014477,2]
[395142969,1764475839680,-300.0,0.00014489,2]
[395142970,1764475839689,-300.0,0.00014489,2]
[395142971,1764475839699,-300.0,0.00014489,2]
[395142972,1764475839708,-150.39058857,0.00014489,2]
[395142973,1764475839717,-500.0,0.0001452,2]
[395142974,1764475839726,-500.0,0.0001452,2]
[395142975,1764475839736,-461.0,0.0001452,2]
[395142976,1764475839745,-500.0,0.0001452,2]
[395142977,1764475839754,-394.2,0.0001452,2]
[395142978,1764475839763,-558.23,0.00014521,2]
[395142979,1764475839773,-151.0,0.00014521,2]
[395142980,1764475839782,-195.0,0.00014525,2]
[395142981,1764475839791,-195.0,0.00014526,2]
[395142982,1764475839801,-250.0,0.00014526,2]
[395142983,1764475839810,-420.0,0.0001455,2]
[395142984,1764475839819,-420.0,0.0001455,2]
[395142985,1764475839828,-195.0,0.00014562,2]
[395142986,1764475839838,-1680.0,0.00014598,2]
[395142987,1764475839847,-195.0,0.00014598,2]
[395142988,1764475839856,-195.0,0.00014599,2]
[395142989,1764475839866,-250.0,0.00014599,2]
[395142990,1764475839875,-500.0,0.00014657,2]
[395142991,1764475839884,-296.85092303,0.00014657,2]
[395142992,1764475839894,-461.0,0.00014657,2]
[395142993,1764475839903,-500.0,0.00014657,2]
[395142994,1764475839913,-500.0,0.0001468,2]
[395142995,1764475839924,-500.0,0.0001468,2]
[395142996,1764475839934,-164.1,0.00014703,2]
[395142997,1764475839943,-500.0,0.00014794,2]
[395142998,1764475839953,-461.0,0.00014794,2]
[395142999,1764475839962,-500.0,0.00014794,2]
[395143000,1764475839972,-394.23127705,0.00014794,2]
[395143001,1764475839981,-500.0,0.00014817,2]
[395143002,1764475839990,-500.0,0.00014897,2]
[395143003,1764475840000,-500.0,0.000149,2]
[395143004,1764475840010,-225.29829185,0.000149,2]